bitfinex-derivatives/quotes_SOLF0:USTF0_20260304
["timestamp","ask_amount","ask_price","bid_price","bid_amount"]
[1772603913562,29.77796026,85.823,85.78,1.56550824]
[1772603914463,1.56550824,85.82,85.78,1.56550824]
[1772603914659,31.3434685,85.82,85.77,1.56550824]
[1772603914959,29.77796026,85.809,85.761,29.91298968]
[1772603916566,29.77796026,85.809,85.77,1.56550824]
[1772603917870,29.77796026,85.809,85.761,29.91298968]
[1772603920475,29.77796026,85.799,85.749,29.91298968]
[1772603920773,29.77796026,85.799,85.76,1.56550824]
[1772603921471,29.77796026,85.799,85.733,14.28324486]
[1772603921472,29.77796026,85.799,85.77,1.56550824]
[1772603921978,29.77796026,85.799,85.761,29.91298968]
[1772603924578,29.77796026,85.769,85.706,21.45975604]
[1772603924780,1.56522295,85.74,85.697,29.91298968]
[1772603925282,29.77796026,85.749,85.7,1.56522295]
[1772603925477,29.77796026,85.749,85.7,31.47821263]
[1772603925777,1.56522295,85.73,85.69,1.56522295]
[1772603925980,1.56522295,85.73,85.691,29.91298968]
[1772603926487,31.34318321,85.74,85.691,29.91298968]
[1772603930283,29.77796026,85.74,85.7,1.56522295]
[1772603930875,31.34318321,85.74,85.7,1.56522295]
[1772603933588,29.77796026,85.74,85.7,31.06489729]
[1772603933786,14.50124565,85.801,85.7,31.06489729]
[1772603933787,29.17476783,85.759,85.71,1.56522295]
[1772603934589,29.17476783,85.759,85.71,31.06489729]
[1772603934786,29.17476783,85.759,85.72,1.56522295]
[1772603938592,29.17476783,85.759,85.71,31.06489729]
[1772603939691,29.17476783,85.759,85.711,29.49967434]
[1772603941191,29.17476783,85.759,85.712,10.5]
[1772603941390,29.17476783,85.759,85.713,29.49967434]
[1772603945387,29.17476783,85.783,85.724,29.49967434]
[1772603945585,1.56522295,85.77,85.731,29.49967434]
[1772603945987,30.73999078,85.77,85.731,29.49967434]
[1772603946497,30.73999078,85.77,85.72,1.56522295]
[1772603946696,30.73999078,85.76,85.72,1.56522295]
[1772603950593,29.17476783,85.76,85.72,1.56522295]
[1772603950793,29.17476783,85.76,85.719,29.49967434]
[1772603950993,29.17476783,85.76,85.72,1.56522295]
[1772603951989,29.17476783,85.76,85.72,31.06489729]
[1772603953301,29.17476783,85.76,85.722,29.49967434]
[1772603954497,29.17476783,85.76,85.73,1.56522295]
[1772603960495,29.17476783,85.76,85.722,29.49967434]
[1772603962104,29.17476783,85.76,85.723,10.499]
[1772603962405,29.17476783,85.76,85.73,1.56522295]
[1772603963000,29.17476783,85.76,85.723,10.499]
[1772603963201,28.87758638,85.779,85.74,1.56522295]
[1772603966604,28.87758638,85.779,85.734,10.498]
[1772603967201,28.87758638,85.769,85.731,28.18946149]
[1772603967506,1.56522295,85.76,85.721,28.18946149]
[1772603967705,28.87758638,85.769,85.721,28.18946149]
[1772603968113,28.87758638,85.749,85.71,1.56522295]
[1772603968305,28.87758638,85.749,85.705,10.501]
[1772603968505,28.87758638,85.739,85.698,28.18946149]
[1772603973414,28.87758638,85.729,85.69,1.56522295]
[1772603974508,28.87758638,85.729,85.69,29.75468444]
[1772603974711,28.87758638,85.729,85.692,38.69246149]
[1772603974904,28.87758638,85.729,85.693,28.18946149]
[1772603977111,28.87758638,85.729,85.69,1.56522295]
[1772603978013,28.87758638,85.729,85.682,38.69346149]
[1772603980915,28.87758638,85.719,85.67,38.69546149]
[1772603981117,28.87758638,85.719,85.67,40.26068444]
[1772603981320,28.87758638,85.719,85.68,1.56522295]
[1772603981823,28.87758638,85.719,85.671,28.18946149]
[1772603982216,28.87758638,85.719,85.673,10.505]
[1772603982521,28.87758638,85.719,85.68,1.56522295]
[1772603986026,28.87758638,85.688,85.617,28.74938926]
[1772603986225,1.56522295,85.67,85.621,28.18946149]
[1772603986420,28.87758638,85.683,85.641,28.18946149]
[1772603986728,28.87758638,85.683,85.65,1.5694353]
[1772603988519,28.87758638,85.683,85.64,1.5694353]
[1772603989025,29.93256274,85.669,85.62,1.5694353]
[1772603989328,29.93256274,85.659,85.62,1.5694353]
[1772603990127,29.93256274,85.659,85.61,1.5694353]
[1772603990321,29.93256274,85.659,85.62,1.5694353]
[1772603992330,10.504,85.687,85.63,1.5694353]
[1772603992331,29.93256274,85.679,85.63,1.5694353]
[1772603993524,29.93256274,85.679,85.64,31.31537381]
[1772603993932,29.93256274,85.679,85.64,1.5694353]
[1772603996233,29.93256274,85.669,85.627,29.74593851]
[1772603996829,29.93256274,85.669,85.63,1.5694353]
[1772603998332,29.93256274,85.678,85.631,29.74593851]
[1772603999935,31.50199804,85.67,85.631,29.74593851]
[1772604000537,29.93256274,85.67,85.64,1.5694353]
[1772604000929,29.93256274,85.67,85.631,29.74593851]
[1772604001127,31.50199804,85.67,85.631,29.74593851]
[1772604001331,29.93256274,85.659,85.603,29.74593851]
[1772604001526,29.93256274,85.639,85.6,1.5694353]
[1772604001728,1.5694353,85.61,85.57,29.74593851]
[1772604001931,29.93256274,85.619,85.58,1.5694353]
[1772604004242,1.5694353,85.63,85.59,1.5694353]
[1772604004941,1.5694353,85.64,85.6,1.5694353]
[1772604005743,29.93256274,85.647,85.6,1.5694353]
[1772604006344,1.5694353,85.64,85.592,29.74593851]
[1772604006544,1.5694353,85.64,85.6,1.5694353]
[1772604006745,29.93256274,85.647,85.6,12.0834353]
[1772604007641,29.93256274,85.647,85.6,1.5694353]
[1772604008439,29.93256274,85.629,85.58,1.5694353]
[1772604008644,29.93256274,85.629,85.58,31.31537381]
[1772604009344,29.93256274,85.629,85.59,1.5694353]
[1772604009944,29.93256274,85.629,85.58,29.74593851]
[1772604009945,29.93256274,85.629,85.582,10.516]
[1772604010747,1.5694353,85.62,85.582,10.516]
[1772604011043,1.5694353,85.62,85.58,31.31537381]
[1772604011645,31.50199804,85.62,85.58,31.31537381]
[1772604011948,29.93256274,85.62,85.58,31.31537381]
[1772604012147,29.93256274,85.62,85.581,10.517]
[1772604012548,29.93256274,85.62,85.59,1.5694353]
[1772604012944,29.93256274,85.633,85.59,12.0844353]
[1772604013349,31.50199804,85.63,85.59,12.0844353]
[1772604013949,31.50199804,85.63,85.58,31.31537381]
[1772604014351,29.93256274,85.599,85.56,1.5694353]
[1772604015738,29.93256274,85.599,85.556,10.52]
[1772604016246,29.93256274,85.599,85.56,1.5694353]
[1772604016545,1.5694353,85.61,85.561,40.26493851]
[1772604016751,31.50199804,85.61,85.561,40.26493851]
[1772604017154,29.93256274,85.61,85.571,10.518]
[1772604017446,10.511,85.63,85.571,10.518]
[1772604017447,29.93256274,85.624,85.58,1.5694353]
[1772604017955,29.93256274,85.649,85.61,1.5694353]
[1772604018446,29.93256274,85.649,85.593,29.74593851]
[1772604018447,29.93256274,85.649,85.6,1.5694353]
[1772604019653,27.37218042,85.647,85.6,1.5694353]
[1772604019854,27.37218042,85.639,85.59,1.5694353]
[1772604022051,27.37218042,85.639,85.592,10.515]
[1772604024953,27.30051818,85.655,85.61,10.513]
[1772604025160,27.30051818,85.655,85.61,29.05150287]
[1772604025554,27.30051818,85.629,85.58,1.5694353]
[1772604025852,27.30051818,85.629,85.59,1.5694353]
[1772604026057,27.30051818,85.648,85.61,1.5694353]
[1772604026453,27.30051818,85.664,85.611,27.48206757]
[1772604026754,27.30051818,85.659,85.62,1.5694353]
[1772604027148,27.30051818,85.659,85.611,27.48206757]
[1772604028053,27.30051818,85.659,85.61,1.5694353]
[1772604028054,27.30051818,85.649,85.61,1.5694353]
[1772604028462,27.30051818,85.649,85.62,1.5694353]
[1772604028960,27.30051818,85.649,85.61,1.5694353]
[1772604029459,1.5694353,85.66,85.62,1.5694353]
[1772604029758,27.30051818,85.663,85.62,1.5694353]
[1772604029949,27.30051818,85.663,85.63,1.5694353]
[1772604030555,27.30051818,85.679,85.64,1.5694353]
[1772604030754,27.30051818,85.677,85.63,1.5694353]
[1772604031256,27.30051818,85.675,85.63,1.5694353]
[1772604031757,27.30051818,85.675,85.64,1.5694353]
[1772604032461,27.30051818,85.689,85.65,1.5694353]
[1772604033062,1.5694353,85.69,85.633,27.48206757]
[1772604033063,27.30051818,85.679,85.633,27.48206757]
[1772604033265,27.30051818,85.679,85.63,1.5694353]
[1772604033464,27.30051818,85.679,85.619,27.48206757]
[1772604033465,27.30051818,85.679,85.64,1.5694353]
[1772604034556,27.30051818,85.679,85.65,1.5694353]
[1772604035064,27.30051818,85.679,85.64,10.508]
[1772604035065,27.30051818,85.679,85.64,1.5694353]
[1772604035762,27.30051818,85.679,85.631,27.48206757]
[1772604035965,27.30051818,85.679,85.64,1.5694353]
[1772604036267,27.30051818,85.679,85.63,1.5694353]
[1772604037261,27.30051818,85.677,85.63,1.5694353]
[1772604037666,14.36555004,85.717,85.582,21.031]
[1772604037667,27.30051818,85.69,85.65,1.5694353]
[1772604038169,28.86995348,85.69,85.65,1.5694353]
[1772604038466,28.86995348,85.69,85.64,29.05150287]
[1772604038667,28.86995348,85.69,85.65,1.5694353]
[1772604038867,28.86995348,85.69,85.64,27.48206757]
[1772604038868,28.86995348,85.69,85.64,29.05150287]
[1772604039072,27.30051818,85.679,85.63,1.5694353]
[1772604039264,27.30051818,85.669,85.63,1.5694353]
[1772604039466,27.30051818,85.669,85.62,1.5694353]
[1772604039770,28.86995348,85.66,85.62,1.5694353]
[1772604041968,27.30051818,85.66,85.62,1.5694353]
[1772604044764,27.30051818,85.66,85.63,1.5694353]
[1772604044966,27.30051818,85.66,85.62,1.5694353]
[1772604048568,27.30051818,85.66,85.62,1.57018989]
[1772604048964,25.71243569,85.658,85.62,1.57018989]
[1772604049265,25.71243569,85.629,85.571,27.31753841]
[1772604049460,25.71243569,85.629,85.58,1.57018989]
[1772604053572,1.57018989,85.62,85.571,27.31753841]
[1772604053776,27.28262558,85.62,85.571,27.31753841]
[1772604054574,27.28262558,85.62,85.58,1.57018989]
[1772604054974,1.57018989,85.63,85.58,28.8877283]
[1772604055169,25.71243569,85.633,85.591,27.31753841]
[1772604055375,25.71243569,85.633,85.6,1.57018989]
[1772604057180,25.71243569,85.633,85.591,27.31753841]
[1772604062388,25.71243569,85.619,85.57,28.8877283]
[1772604069097,25.71243569,85.619,85.572,27.31753841]
[1772604069395,25.71243569,85.643,85.6,28.8877283]
[1772604069789,25.71243569,85.639,85.6,27.31753841]
[1772604070292,25.71243569,85.639,85.59,1.57018989]
[1772604070497,27.28262558,85.63,85.587,27.31753841]
[1772604071591,27.28262558,85.63,85.59,28.8877283]
[1772604071798,25.71243569,85.63,85.59,28.8877283]
[1772604072802,27.28262558,85.63,85.59,27.31753841]
[1772604073501,27.28262558,85.63,85.59,28.8877283]
[1772604073698,27.28262558,85.63,85.59,27.31753841]
[1772604073904,25.71243569,85.619,85.574,27.31753841]
[1772604075302,25.71243569,85.619,85.577,10.516]
[1772604075599,25.71243569,85.619,85.58,28.8877283]
[1772604076593,25.71243569,85.619,85.57,1.57018989]
[1772604076804,25.71243569,85.609,85.57,1.57018989]
[1772604078205,25.71243569,85.609,85.57,26.56675088]
[1772604078594,25.71243569,85.609,85.571,10.517]
[1772604079104,25.71243569,85.609,85.571,35.51356099]
[1772604079301,25.71243569,85.609,85.572,24.99656099]
[1772604081208,27.56250901,85.62,85.572,24.99656099]
[1772604083708,27.56250901,85.62,85.575,26.80028639]
[1772604084601,27.56250901,85.63,85.58,28.37047628]
[1772604085007,25.99231912,85.63,85.59,1.57018989]
[1772604085306,27.56250901,85.63,85.582,37.31528639]
[1772604086008,25.99231912,85.599,85.551,26.80028639]
[1772604086706,25.99231912,85.599,85.553,10.519]
[1772604088498,10.514,85.597,85.55,1.57018989]
[1772604088700,25.99231912,85.579,85.53,1.57018989]
[1772604088912,25.99231912,85.579,85.53,28.37047628]
[1772604089713,25.99231912,85.569,85.517,26.80028639]
[1772604090010,25.99231912,85.569,85.52,1.57018989]
[1772604090305,27.56250901,85.56,85.52,1.57018989]
[1772604093507,27.56250901,85.56,85.517,26.80028639]
[1772604093707,27.56250901,85.56,85.52,1.57018989]
[1772604093903,25.99231912,85.56,85.52,1.57018989]
[1772604095409,27.56250901,85.56,85.52,1.57018989]
[1772604096807,1.57018989,85.54,85.506,26.80028639]
[1772604097211,25.99231912,85.549,85.506,26.80028639]
[1772604097405,25.99231912,85.549,85.51,1.57018989]
[1772604097806,1.57018989,85.56,85.52,1.57018989]
[1772604098007,27.56250901,85.56,85.52,1.57018989]
[1772604098419,27.56250901,85.56,85.512,26.80028639]
[1772604098811,10.517,85.57,85.512,26.80028639]
[1772604098812,25.99231912,85.549,85.512,26.80028639]
[1772604101716,25.99231912,85.549,85.513,10.524]
[1772604101918,25.99231912,85.549,85.512,26.80028639]
[1772604102411,14.36555004,85.612,85.452,217.89962893]
[1772604102412,1.57018989,85.53,85.488,26.80028639]
[1772604102606,25.99231912,85.529,85.49,1.57018989]
[1772604102812,25.99231912,85.529,85.488,26.80028639]
[1772604103518,25.99231912,85.529,85.48,1.57018989]
[1772604104109,27.56250901,85.52,85.48,1.57018989]
[1772604104816,27.56250901,85.52,85.475,26.80028639]
[1772604105317,27.56250901,85.52,85.48,1.57018989]
[1772604106111,27.56250901,85.52,85.48,28.37047628]
[1772604106309,25.99231912,85.52,85.48,28.37047628]
[1772604106711,25.99231912,85.52,85.49,1.57018989]
[1772604108213,25.99231912,85.52,85.481,37.32828639]
[1772604108415,25.65671884,85.533,85.49,1.57018989]
[1772604108719,25.65671884,85.533,85.5,1.57502426]
[1772604108913,25.65671884,85.533,85.49,1.57502426]
[1772604109320,174.30816253,85.607,85.44,2.03553411]
[1772604109321,25.65671884,85.529,85.48,1.57502426]
[1772604111721,25.65671884,85.519,85.48,1.57502426]
[1772604114322,25.65671884,85.519,85.462,10.53]
[1772604114526,25.65671884,85.509,85.47,1.57502426]
[1772604115124,25.65671884,85.509,85.462,10.53]
[1772604115320,11.76524773,85.574,85.451,10.531]
[1772604115321,25.65671884,85.499,85.451,10.531]
[1772604115921,25.65671884,85.499,85.46,1.57502426]
[1772604117031,25.65671884,85.507,85.47,1.57502426]
[1772604117229,25.65671884,85.507,85.48,1.57502426]
[1772604118430,25.65671884,85.499,85.445,25.55469354]
[1772604118629,25.65671884,85.509,85.47,1.57502426]
[1772604118835,25.65671884,85.529,85.49,1.57502426]
[1772604119626,25.65671884,85.499,85.46,1.57502426]
[1772604120234,25.65671884,85.499,85.47,1.57502426]
[1772604120629,25.65671884,85.499,85.399,163.93]
[1772604120630,25.65671884,85.489,85.421,25.55469354]
[1772604120839,25.65671884,85.489,85.441,10.533]
[1772604121032,25.65671884,85.489,85.45,1.57502426]
[1772604121634,25.65671884,85.479,85.44,1.57502426]
[1772604122428,25.65671884,85.469,85.44,1.57502426]
[1772604122630,27.2317431,85.48,85.44,1.57502426]
[1772604122833,25.65671884,85.48,85.45,1.57502426]
[1772604123139,25.65671884,85.499,85.46,1.57502426]
[1772604123540,25.65671884,85.499,85.442,25.55469354]
[1772604123541,25.65671884,85.499,85.45,1.57502426]
[1772604124437,25.65671884,85.499,85.46,1.57502426]
[1772604124740,25.65671884,85.499,85.445,25.55469354]
[1772604124936,25.65671884,85.499,85.46,1.57502426]
[1772604125439,25.65671884,85.499,85.47,1.57502426]
[1772604125733,25.65671884,85.499,85.458,25.55469354]
[1772604125734,25.65671884,85.499,85.46,1.57502426]
[1772604132937,25.65671884,85.499,85.46,27.1297178]
[1772604133442,25.65671884,85.499,85.45,1.57502426]
[1772604133944,25.65671884,85.499,85.46,1.57502426]
[1772604134539,25.65671884,85.499,85.462,10.53]
[1772604135837,25.65671884,85.499,85.46,1.57502426]
[1772604137035,25.65671884,85.499,85.462,10.53]
[1772604137440,25.65671884,85.544,85.48,1.57502426]
[1772604137639,25.65671884,85.539,85.49,1.57502426]
[1772604137838,25.65671884,85.529,85.48,1.57502426]
[1772604138643,25.65671884,85.529,85.481,10.528]
[1772604139935,25.65671884,85.529,85.49,1.57502426]
[1772604140134,25.65671884,85.529,85.49,12.10202426]
[1772604141140,25.65671884,85.529,85.49,10.527]
[1772604141641,25.65671884,85.529,85.481,10.528]
[1772604143141,26.47072314,85.519,85.481,10.528]
[1772604143750,26.47072314,85.519,85.463,25.96401423]
[1772604143751,1.57502426,85.51,85.47,12.10402426]
[1772604144042,26.47072314,85.509,85.47,10.529]
[1772604145740,26.47072314,85.509,85.461,10.53]
[1772604146849,26.47072314,85.509,85.46,1.57502426]
[1772604147450,26.47072314,85.489,85.443,10.532]
[1772604147649,26.47072314,85.489,85.45,1.57502426]
[1772604148155,26.47072314,85.489,85.451,10.532]
[1772604149455,26.47072314,85.489,85.45,1.57502426]
[1772604150446,26.47072314,85.489,85.46,1.57502426]
[1772604150853,26.47072314,85.509,85.46,1.57502426]
[1772604152361,28.0457474,85.5,85.453,36.49501423]
[1772604158060,28.0457474,85.5,85.454,25.96401423]
[1772604158773,1.57502426,85.47,85.426,25.96401423]
[1772604159070,1.57502426,85.47,85.431,25.96401423]
[1772604159266,28.0457474,85.47,85.431,25.96401423]
[1772604159572,28.0457474,85.48,85.431,25.96401423]
[1772604159970,1.57502426,85.47,85.431,25.96401423]
[1772604160171,28.0457474,85.47,85.431,25.96401423]
[1772604162670,28.0457474,85.47,85.42,12.11002426]
[1772604162870,28.0457474,85.47,85.415,25.96401423]
[1772604162871,28.0457474,85.45,85.41,1.57502426]
[1772604163173,28.0457474,85.45,85.403,25.96401423]
[1772604163371,28.0457474,85.45,85.405,10.537]
[1772604163572,28.0457474,85.45,85.41,1.57502426]
[1772604163873,26.47072314,85.45,85.41,1.57502426]
[1772604164073,26.47072314,85.45,85.412,10.536]
[1772604164371,26.47072314,85.45,85.413,25.96401423]
[1772604164867,1.57502426,85.46,85.416,10.536]
[1772604165076,26.47072314,85.462,85.42,1.57502426]
[1772604167471,1.57502426,85.46,85.42,1.57502426]
[1772604167771,26.47072314,85.462,85.43,1.57502426]
[1772604168867,26.47072314,85.462,85.423,25.96401423]
[1772604169569,26.47072314,85.462,85.43,1.57502426]
[1772604170467,26.47072314,85.462,85.43,1.57748974]
[1772604170663,26.27434344,85.479,85.44,1.57748974]
[1772604174380,26.27434344,85.479,85.434,25.89855242]
[1772604176783,26.27434344,85.479,85.433,10.534]
[1772604180084,26.27434344,85.479,85.43,1.57748974]
[1772604180388,10.527,85.486,85.43,1.57748974]
[1772604180389,26.27434344,85.469,85.43,1.57748974]
[1772604180888,26.27434344,85.469,85.424,10.535]
[1772604181783,26.27434344,85.459,85.42,1.57748974]
[1772604182988,26.27434344,85.459,85.41,27.47604216]
[1772604183286,26.27434344,85.429,85.384,25.89855242]
[1772604183483,10.81177301,85.497,85.384,25.89855242]
[1772604183484,26.27434344,85.441,85.384,25.89855242]
[1772604183789,26.27434344,85.441,85.4,1.57748974]
[1772604184481,26.27434344,85.453,85.41,27.47604216]
[1772604184687,26.27434344,85.453,85.42,1.57748974]
[1772604185482,26.27434344,85.463,85.42,27.47604216]
[1772604186583,1.57748974,85.46,85.42,27.47604216]
[1772604187186,27.85183318,85.46,85.42,27.47604216]
[1772604187784,26.27434344,85.473,85.43,27.47604216]
[1772604188184,26.27434344,85.469,85.43,1.57748974]
[1772604188488,1.57748974,85.45,85.41,1.57748974]
[1772604188693,26.27434344,85.449,85.401,25.89855242]
[1772604189396,26.27434344,85.449,85.401,36.43655242]
[1772604189791,26.27434344,85.439,85.401,25.89855242]
[1772604189994,26.27434344,85.439,85.39,1.57748974]
[1772604190395,27.85183318,85.43,85.39,1.57748974]
[1772604192197,27.85183318,85.43,85.38,1.57748974]
[1772604193392,27.85183318,85.43,85.381,10.54]
[1772604193600,27.85183318,85.43,85.39,1.57748974]
[1772604193798,26.27434344,85.43,85.39,1.57748974]
[1772604194593,26.27434344,85.43,85.4,1.57748974]
[1772604196398,26.27434344,85.454,85.41,1.57748974]
[1772604196598,26.27434344,85.454,85.41,27.47604216]
[1772604198693,26.56344137,85.45,85.4,1.57748974]
[1772604198893,24.98595163,85.439,85.393,10.539]
[1772604199297,24.98595163,85.439,85.4,1.57748974]
[1772604200205,24.98595163,85.439,85.402,10.538]
[1772604200403,24.98595163,85.439,85.403,23.89741644]
[1772604205408,24.30214422,85.449,85.403,23.89741644]
[1772604206205,24.30214422,85.449,85.406,10.537]
[1772604207708,24.30214422,85.449,85.411,23.89741644]
[1772604210109,24.30214422,85.449,85.41,1.57748974]
[1772604210110,24.30214422,85.459,85.413,23.89741644]
[1772604210714,24.30214422,85.459,85.415,34.43341644]
[1772604210906,24.30214422,85.459,85.42,25.47490618]
[1772604212208,24.30214422,85.459,85.421,10.535]
[1772604212406,24.30214422,85.459,85.422,23.89741644]
[1772604213115,10.528,85.481,85.431,23.89741644]
[1772604213310,14.36555004,85.518,85.431,23.89741644]
[1772604213311,34.83014422,85.478,85.431,23.89741644]
[1772604213506,24.30214422,85.477,85.433,23.89741644]
[1772604214110,24.30214422,85.477,85.44,25.47490618]
[1772604215216,24.30214422,85.477,85.44,23.89741644]
[1772604215618,24.30214422,85.477,85.44,25.47490618]
[1772604218323,1.57748974,85.49,85.45,25.47490618]
[1772604218516,24.30214422,85.491,85.45,25.47490618]
[1772604218820,25.87963396,85.49,85.45,23.89741644]
[1772604219026,24.30214422,85.479,85.43,25.47490618]
[1772604219227,24.30214422,85.492,85.45,25.47490618]
[1772604219426,1.57748974,85.5,85.46,25.47490618]
[1772604219725,24.30214422,85.489,85.44,1.57748974]
[1772604219916,24.30214422,85.489,85.441,23.89741644]
[1772604220316,24.30214422,85.489,85.44,1.57748974]
[1772604220317,1.57748974,85.45,85.413,23.89741644]
[1772604220520,1.57748974,85.44,85.4,25.47490618]
[1772604220722,25.87963396,85.44,85.4,23.89741644]
[1772604220916,1.57748974,85.43,85.4,23.89741644]
[1772604221120,1.57748974,85.43,85.39,12.11648974]
[1772604221317,1.57748974,85.43,85.385,23.89741644]
[1772604221919,1.57748974,85.43,85.387,10.539]
[1772604222322,1.57748974,85.43,85.387,34.43641644]
[1772604222517,25.87963396,85.43,85.387,23.89741644]
[1772604224833,25.87963396,85.43,85.39,1.57748974]
[1772604225733,1.57748974,85.42,85.381,23.89741644]
[1772604225937,25.87963396,85.43,85.381,23.89741644]
[1772604226239,25.87963396,85.43,85.39,1.57748974]
[1772604226528,25.87963396,85.43,85.381,23.89741644]
[1772604228440,26.2779976,85.44,85.392,24.92696034]
[1772604228829,1.57748974,85.43,85.392,24.92696034]
[1772604229443,26.2779976,85.44,85.392,24.92696034]
[1772604229936,24.70050786,85.449,85.403,24.92696034]
[1772604230139,1.57748974,85.46,85.42,1.57748974]
[1772604230946,24.70050786,85.465,85.421,24.92696034]
[1772604233343,24.70050786,85.465,85.43,1.57771096]
[1772604234539,24.70050786,85.465,85.422,10.535]
[1772604235045,24.70050786,85.465,85.421,24.92696034]
[1772604235444,1.57771096,85.46,85.421,24.92696034]
[1772604235742,24.70050786,85.465,85.421,24.92696034]
[1772604236545,24.70050786,85.465,85.41,10.537]
[1772604236740,24.70050786,85.459,85.41,12.11471096]
[1772604236940,24.70050786,85.459,85.41,37.0416713]
[1772604239241,24.70050786,85.459,85.41,26.5046713]
[1772604239444,14.36555004,85.498,85.4,10.538]
[1772604239445,24.70050786,85.439,85.4,1.57771096]
[1772604240751,24.70050786,85.439,85.396,24.92696034]
[1772604240947,1.57771096,85.43,85.396,24.92696034]
[1772604241547,24.70050786,85.439,85.396,24.92696034]
[1772604242355,24.70050786,85.452,85.41,1.57771096]
[1772604242549,1.57771096,85.46,85.42,1.57771096]
[1772604243055,26.27821882,85.46,85.41,26.5046713]
[1772604243451,1.57771096,85.45,85.41,26.5046713]
[1772604244747,26.27821882,85.46,85.41,26.5046713]
[1772604246457,26.27821882,85.46,85.411,24.92696034]
[1772604247255,26.27821882,85.46,85.412,35.46296034]
[1772604248052,26.27821882,85.46,85.417,10.536]
[1772604248257,26.27821882,85.46,85.421,24.92696034]
[1772604248653,26.27832874,85.46,85.421,24.92696034]
[1772604251864,26.27832874,85.46,85.422,10.535]
[1772604252063,24.70050786,85.46,85.422,10.535]
[1772604252564,1.57782088,85.45,85.412,10.536]
[1772604253870,26.27832874,85.46,85.412,10.536]
[1772604254461,1.57782088,85.45,85.412,10.536]
[1772604254766,26.27832874,85.46,85.419,10.535]
[1772604254965,26.27832874,85.46,85.419,35.46196034]
[1772604255366,26.27832874,85.46,85.423,10.535]
[1772604255567,1.57782088,85.47,85.424,24.92696034]
[1772604256269,24.70050786,85.469,85.424,24.92696034]
[1772604257369,24.70050786,85.469,85.425,10.535]
[1772604257768,24.70050786,85.469,85.425,35.46196034]
[1772604259268,1.57782088,85.46,85.425,24.92696034]
[1772604267069,24.70050786,85.469,85.425,24.92696034]
[1772604267976,1.57782088,85.46,85.425,24.92696034]
[1772604270378,1.57782088,85.48,85.43,26.27575171]
[1772604271278,8.73326832,85.485,85.44,26.27575171]
[1772604271479,1.57782088,85.49,85.44,26.27575171]
[1772604272175,1.57782088,85.49,85.451,24.69793083]
[1772604273478,24.31776781,85.489,85.448,10.532]
[1772604273680,24.31776781,85.479,85.435,24.69793083]
[1772604273877,1.57782088,85.47,85.435,24.69793083]
[1772604276084,25.89558869,85.46,85.423,24.69793083]
[1772604276476,1.57782088,85.47,85.423,24.69793083]
[1772604276780,25.89558869,85.47,85.423,24.69793083]
[1772604276977,1.57782088,85.46,85.423,24.69793083]
[1772604281688,36.42458869,85.47,85.423,24.69793083]
[1772604282091,24.31776781,85.469,85.423,24.69793083]
[1772604282391,1.57782088,85.46,85.423,24.69793083]
[1772604284396,1.57782088,85.45,85.411,24.69793083]
[1772604286199,25.89558869,85.45,85.411,24.69793083]
[1772604287905,1.57782088,85.44,85.411,24.69793083]
[1772604288402,25.89558869,85.45,85.411,24.69793083]
[1772604289899,10.81177301,85.474,85.414,10.536]
[1772604290102,25.21437163,85.47,85.421,22.450596]
[1772604290305,1.57782088,85.48,85.431,22.450596]
[1772604290601,8.73334772,85.479,85.431,22.450596]
[1772604290801,23.63655075,85.479,85.427,22.450596]
[1772604291001,1.57782088,85.47,85.427,22.450596]
[1772604291200,23.63655075,85.477,85.431,22.450596]
[1772604293202,23.63655075,85.477,85.434,10.534]
[1772604293397,23.63655075,85.477,85.435,22.450596]
[1772604293595,25.21379553,85.49,85.441,22.450596]
[1772604293899,8.73194423,85.489,85.441,22.450596]
[1772604295201,8.73194423,85.489,85.444,10.532]
[1772604295403,8.73194423,85.489,85.445,22.450596]
[1772604295805,34.44832376,85.52,85.471,22.450596]
[1772604296007,1.57724478,85.51,85.471,22.450596]
[1772604296306,9.43728678,85.519,85.471,22.450596]
[1772604296808,23.63655075,85.532,85.481,22.450596]
[1772604297003,1.57724478,85.52,85.481,22.450596]
[1772604297908,1.57724478,85.54,85.501,22.450596]
[1772604299014,1.57724478,85.54,85.43,163.87]
[1772604299015,25.21379553,85.57,85.521,22.450596]
[1772604300015,11.96258866,85.6,85.521,22.450596]
[1772604300210,23.63655075,85.6,85.548,22.450596]
[1772604300512,1.57724478,85.59,85.55,24.02784078]
[1772604300709,25.21379553,85.6,85.55,24.02784078]
[1772604301306,1.57724478,85.57,85.535,22.450596]
[1772604301615,23.63655075,85.586,85.54,1.57724478]
[1772604301810,1.57724478,85.58,85.531,22.450596]
[1772604302012,23.63655075,85.586,85.531,22.450596]
[1772604302309,1.57724478,85.55,85.515,22.450596]
[1772604303312,1.57724478,85.53,85.482,22.450596]
[1772604304916,1.57724478,85.53,85.49,24.02784078]
[1772604305420,1.57724478,85.55,85.501,22.450596]
[1772604305918,1.57724478,85.54,85.501,22.450596]
[1772604306620,1.57724478,85.53,85.49,24.02784078]